[Event "January 9 Late 2024"]
[Site "https://www.chess.com"]
[Date "2024.01.09"]
[Round "7"]
[White "Melamed, Daniel"]
[Black "Yushko, Olga"]
[Result "1-0"]
[Board "157"]
[TimeControl "180+1"]
[WhiteFideId "3229076"]
[BlackFideId "14114500"]
[WhiteElo "2333"]
[BlackElo "2122"]
[WhiteTeam "AUS"]
[BlackTeam "UKR"]
[WhiteClock "0:00:07"]
[BlackClock "0:00:06"]

1. d4 {[%clk 0:03:00]}  e6 {[%clk 0:02:58]} 2. Nf3 {[%clk 0:03:01]}  Nf6 {[%clk 0:02:56]} 3. Bf4 {[%clk 0:03:01]}  d5 {[%clk 0:02:55]} 4. e3 {[%clk 0:03:02]}  Be7 {[%clk 0:02:54]} 5. Bd3 {[%clk 0:03:01]}  O-O {[%clk 0:02:52]} 6. O-O {[%clk 0:03:01]}  c6 {[%clk 0:02:50]} 7. c3 {[%clk 0:03:00]}  Nbd7 {[%clk 0:02:49]} 8. Nbd2 {[%clk 0:03:00]}  Re8 {[%clk 0:02:47]} 9. h3 {[%clk 0:02:52]}  Nf8 {[%clk 0:02:43]} 10. Re1 {[%clk 0:02:49]}  Bd6 {[%clk 0:02:42]} 11. Ne5 {[%clk 0:02:37]}  Ng6 {[%clk 0:02:39]} 12. Nxg6 {[%clk 0:02:20]}  hxg6 {[%clk 0:02:40]} 13. Bxd6 {[%clk 0:02:20]}  Qxd6 {[%clk 0:02:39]} 14. e4 {[%clk 0:02:14]}  e5 {[%clk 0:02:39]} 15. exd5 {[%clk 0:02:10]}  Nxd5 {[%clk 0:02:37]} 16. Nc4 {[%clk 0:02:07]}  Qf6 {[%clk 0:02:27]} 17. Rxe5 {[%clk 0:01:59]}  Rxe5 {[%clk 0:02:17]} 18. Nxe5 {[%clk 0:01:57]}  Nf4 {[%clk 0:02:15]} 19. Bf1 {[%clk 0:01:54]}  Qg5 {[%clk 0:02:09]} 20. Kh2 {[%clk 0:01:48]}  Be6 {[%clk 0:01:57]} 21. g3 {[%clk 0:01:29]}  Nh5 {[%clk 0:01:44]} 22. Bg2 {[%clk 0:01:22]}  Re8 {[%clk 0:01:20]} 23. Qd3 {[%clk 0:01:14]}  Bf5 {[%clk 0:01:12]} 24. Qf3 {[%clk 0:01:03]}  Be6 {[%clk 0:01:09]} 25. Re1 {[%clk 0:00:54]}  Bd5 {[%clk 0:01:08]} 26. Qe3 {[%clk 0:00:49]}  Qf6 {[%clk 0:00:58]} 27. Bxd5 {[%clk 0:00:48]}  cxd5 {[%clk 0:00:59]} 28. Kg2 {[%clk 0:00:48]}  Qb6 {[%clk 0:00:54]} 29. Qf3 {[%clk 0:00:40]}  Nf6 {[%clk 0:00:51]} 30. g4 {[%clk 0:00:37]}  Re7 {[%clk 0:00:35]} 31. Nc4 {[%clk 0:00:23]}  Qc7 {[%clk 0:00:34]} 32. Rxe7 {[%clk 0:00:23]}  Qxe7 {[%clk 0:00:34]} 33. Ne3 {[%clk 0:00:24]}  Qe6 {[%clk 0:00:32]} 34. Qf4 {[%clk 0:00:22]}  Ne4 {[%clk 0:00:31]} 35. Qb8+ {[%clk 0:00:21]}  Kh7 {[%clk 0:00:31]} 36. Qf4 {[%clk 0:00:15]}  Nd2 {[%clk 0:00:27]} 37. Qe5 {[%clk 0:00:14]}  Qd7 {[%clk 0:00:26]} 38. Qxd5 {[%clk 0:00:13]}  Qxd5+ {[%clk 0:00:23]} 39. Nxd5 {[%clk 0:00:14]}  Nc4 {[%clk 0:00:23]} 40. b3 {[%clk 0:00:14]}  Nd6 {[%clk 0:00:23]} 41. c4 {[%clk 0:00:14]}  g5 {[%clk 0:00:23]} 42. Ne3 {[%clk 0:00:12]}  Kg6 {[%clk 0:00:23]} 43. c5 {[%clk 0:00:12]}  Nb5 {[%clk 0:00:23]} 44. d5 {[%clk 0:00:12]}  Kf6 {[%clk 0:00:23]} 45. Nc4 {[%clk 0:00:10]}  Nc3 {[%clk 0:00:22]} 46. d6 {[%clk 0:00:09]}  Nxa2 {[%clk 0:00:20]} 47. Na5 {[%clk 0:00:08]}  Ke6 {[%clk 0:00:20]} 48. Nxb7 {[%clk 0:00:08]}  Kd7 {[%clk 0:00:20]} 49. Na5 {[%clk 0:00:06]}  Nc3 {[%clk 0:00:20]} 50. Kf3 {[%clk 0:00:06]}  g6 {[%clk 0:00:15]} 51. Ke3 {[%clk 0:00:06]}  f6 {[%clk 0:00:13]} 52. Kd4 {[%clk 0:00:07]}  Nb5+ {[%clk 0:00:13]} 53. Kd5 {[%clk 0:00:07]}  Nc3+ {[%clk 0:00:13]} 54. Kc4 {[%clk 0:00:07]}  Ne4 {[%clk 0:00:12]} 55. b4 {[%clk 0:00:08]}  Nd2+ {[%clk 0:00:12]} 56. Kd5 {[%clk 0:00:08]}  Nf3 {[%clk 0:00:12]} 57. c6+ {[%clk 0:00:08]}  Kd8 {[%clk 0:00:12]} 58. b5 {[%clk 0:00:09]}  Ne5 {[%clk 0:00:12]} 59. Nc4 {[%clk 0:00:09]}  Nd3 {[%clk 0:00:11]} 60. d7 {[%clk 0:00:06]}  Nf4+ {[%clk 0:00:06]} 61. Kd6 {[%clk 0:00:07]} 1-0

[Event "January 9 Late 2024"]
[Site "https://www.chess.com"]
[Date "2024.01.09"]
[Round "7"]
[White "Salman, Ilhan Serhat"]
[Black "Antunes, Luciano Justi"]
[Result "1-0"]
[Board "159"]
[TimeControl "180+1"]
[WhiteFideId "6361579"]
[BlackFideId "2126893"]
[WhiteElo "2481"]
[BlackElo "2119"]
[WhiteTeam "TUR"]
[BlackTeam "BRA"]
[WhiteClock "0:00:52"]
[BlackClock "0:00:00"]

1. d4 {[%clk 0:03:00]}  Nf6 {[%clk 0:02:59]} 2. Bg5 {[%clk 0:02:58]}  Ne4 {[%clk 0:02:58]} 3. h4 {[%clk 0:02:57]}  c5 {[%clk 0:02:57]} 4. dxc5 {[%clk 0:02:54]}  Nxg5 {[%clk 0:02:52]} 5. hxg5 {[%clk 0:02:55]}  Qa5+ {[%clk 0:02:52]} 6. Nd2 {[%clk 0:02:53]}  Qxc5 {[%clk 0:02:51]} 7. Ngf3 {[%clk 0:02:53]}  Nc6 {[%clk 0:02:48]} 8. c3 {[%clk 0:02:52]}  g6 {[%clk 0:02:42]} 9. Qc2 {[%clk 0:02:49]}  d6 {[%clk 0:02:37]} 10. e3 {[%clk 0:02:49]}  Bf5 {[%clk 0:02:34]} 11. Bd3 {[%clk 0:02:50]}  Bxd3 {[%clk 0:02:25]} 12. Qxd3 {[%clk 0:02:51]}  Bg7 {[%clk 0:02:25]} 13. O-O-O {[%clk 0:02:49]}  b5 {[%clk 0:02:03]} 14. Kb1 {[%clk 0:02:48]}  b4 {[%clk 0:01:56]} 15. Nb3 {[%clk 0:02:45]}  Qb6 {[%clk 0:01:51]} 16. cxb4 {[%clk 0:02:33]}  Nxb4 {[%clk 0:01:48]} 17. Qe4 {[%clk 0:02:33]}  d5 {[%clk 0:01:23]} 18. Qg4 {[%clk 0:02:19]}  e6 {[%clk 0:01:16]} 19. e4 {[%clk 0:02:13]}  h5 {[%clk 0:01:09]} 20. gxh6 {[%clk 0:02:11]}  Rxh6 {[%clk 0:01:04]} 21. Rxh6 {[%clk 0:02:10]}  Bxh6 {[%clk 0:01:03]} 22. exd5 {[%clk 0:02:10]}  Nxd5 {[%clk 0:01:01]} 23. Qe4 {[%clk 0:01:54]}  Kf8 {[%clk 0:00:56]} 24. Qd4 {[%clk 0:01:43]}  Bg7 {[%clk 0:00:50]} 25. Qxb6 {[%clk 0:01:34]}  axb6 {[%clk 0:00:45]} 26. Rc1 {[%clk 0:01:35]}  Ke7 {[%clk 0:00:41]} 27. Nbd4 {[%clk 0:01:33]}  Kf8 {[%clk 0:00:26]} 28. Rc6 {[%clk 0:01:24]}  Ra4 {[%clk 0:00:18]} 29. b3 {[%clk 0:01:20]}  Ra8 {[%clk 0:00:16]} 30. Nb5 {[%clk 0:01:12]}  Kg8 {[%clk 0:00:14]} 31. a4 {[%clk 0:01:01]}  Rd8 {[%clk 0:00:12]} 32. Nd6 {[%clk 0:01:01]}  Bf8 {[%clk 0:00:11]} 33. Ne4 {[%clk 0:00:58]}  f5 {[%clk 0:00:09]} 34. Neg5 {[%clk 0:00:57]}  Rd6 {[%clk 0:00:05]} 35. Rxd6 {[%clk 0:00:57]}  Bxd6 {[%clk 0:00:05]} 36. Nxe6 {[%clk 0:00:58]}  Kf7 {[%clk 0:00:05]} 37. Ned4 {[%clk 0:00:57]}  Nf4 {[%clk 0:00:04]} 38. g3 {[%clk 0:00:56]}  Nd3 {[%clk 0:00:03]} 39. Ng5+ {[%clk 0:00:53]}  Kf6 {[%clk 0:00:02]} 40. Nh3 {[%clk 0:00:53]}  Bc5 {[%clk 0:00:00]} 41. Kc2 {[%clk 0:00:52]} 1-0

[Event "January 9 Late 2024"]
[Site "https://www.chess.com"]
[Date "2024.01.09"]
[Round "7"]
[White "Skurikhin, Dmitrij"]
[Black "Argandona Riveiro, Inigo"]
[Result "0-1"]
[Board "161"]
[TimeControl "180+1"]
[WhiteFideId "4161297"]
[BlackFideId "2212072"]
[WhiteElo "2227"]
[BlackElo "2391"]
[WhiteTeam "RUS"]
[BlackTeam "ESP"]
[WhiteClock "0:00:22"]
[BlackClock "0:00:09"]

1. d4 {[%clk 0:03:00]}  d6 {[%clk 0:02:59]} 2. c4 {[%clk 0:02:59]}  e5 {[%clk 0:02:58]} 3. e4 {[%clk 0:02:59]}  exd4 {[%clk 0:02:57]} 4. Qxd4 {[%clk 0:02:58]}  Nc6 {[%clk 0:02:57]} 5. Qd1 {[%clk 0:02:58]}  g6 {[%clk 0:02:57]} 6. Bd2 {[%clk 0:02:57]}  Bg7 {[%clk 0:02:55]} 7. Bc3 {[%clk 0:02:56]}  Nf6 {[%clk 0:02:55]} 8. Bd3 {[%clk 0:02:55]}  O-O {[%clk 0:02:54]} 9. Nf3 {[%clk 0:02:53]}  Re8 {[%clk 0:02:54]} 10. Nbd2 {[%clk 0:02:53]}  Bg4 {[%clk 0:02:48]} 11. O-O {[%clk 0:02:51]}  Ne5 {[%clk 0:02:43]} 12. Be2 {[%clk 0:02:51]}  Bxf3 {[%clk 0:02:39]} 13. Bxf3 {[%clk 0:02:48]}  Qe7 {[%clk 0:02:25]} 14. Re1 {[%clk 0:02:47]}  Nd3 {[%clk 0:02:22]} 15. Re3 {[%clk 0:02:43]}  Nf4 {[%clk 0:02:20]} 16. g3 {[%clk 0:02:40]}  Nh3+ {[%clk 0:02:17]} 17. Kf1 {[%clk 0:02:30]}  Ng5 {[%clk 0:02:16]} 18. Bg2 {[%clk 0:02:29]}  h5 {[%clk 0:02:13]} 19. h3 {[%clk 0:02:13]}  Qe6 {[%clk 0:02:10]} 20. h4 {[%clk 0:02:07]}  Ng4 {[%clk 0:02:08]} 21. hxg5 {[%clk 0:02:03]}  Nxe3+ {[%clk 0:02:08]} 22. fxe3 {[%clk 0:02:02]}  Bxc3 {[%clk 0:02:08]} 23. bxc3 {[%clk 0:02:03]}  Qe5 {[%clk 0:02:08]} 24. Nf3 {[%clk 0:01:46]}  Qxe4 {[%clk 0:02:01]} 25. Qd4 {[%clk 0:01:43]}  Qxe3 {[%clk 0:01:57]} 26. Re1 {[%clk 0:01:39]}  Qxd4 {[%clk 0:01:43]} 27. cxd4 {[%clk 0:01:39]}  Rxe1+ {[%clk 0:01:43]} 28. Kxe1 {[%clk 0:01:38]}  Re8+ {[%clk 0:01:43]} 29. Kd2 {[%clk 0:01:37]}  Re4 {[%clk 0:01:41]} 30. Bh3 {[%clk 0:01:23]}  c5 {[%clk 0:01:31]} 31. Kd3 {[%clk 0:01:22]}  Re7 {[%clk 0:01:29]} 32. a4 {[%clk 0:01:18]}  Kg7 {[%clk 0:01:24]} 33. Nd2 {[%clk 0:01:14]}  Re1 {[%clk 0:01:21]} 34. Bg2 {[%clk 0:01:05]}  b6 {[%clk 0:01:18]} 35. Bf3 {[%clk 0:01:02]}  Ra1 {[%clk 0:00:56]} 36. Ne4 {[%clk 0:00:59]}  Ra3+ {[%clk 0:00:55]} 37. Ke2 {[%clk 0:00:57]}  Rxa4 {[%clk 0:00:46]} 38. Nxd6 {[%clk 0:00:57]}  cxd4 {[%clk 0:00:45]} 39. Bd5 {[%clk 0:00:56]}  Ra3 {[%clk 0:00:41]} 40. Kf2 {[%clk 0:00:49]}  Ra2+ {[%clk 0:00:27]} 41. Kf3 {[%clk 0:00:48]}  d3 {[%clk 0:00:27]} 42. Nxf7 {[%clk 0:00:47]}  d2 {[%clk 0:00:26]} 43. Ke2 {[%clk 0:00:47]}  Ra5 {[%clk 0:00:19]} 44. Nd6 {[%clk 0:00:44]}  Ra3 {[%clk 0:00:19]} 45. Ne4 {[%clk 0:00:42]}  a5 {[%clk 0:00:17]} 46. Kxd2 {[%clk 0:00:40]}  Ra1 {[%clk 0:00:16]} 47. Ke3 {[%clk 0:00:39]}  a4 {[%clk 0:00:14]} 48. Kd2 {[%clk 0:00:39]}  Rg1 {[%clk 0:00:12]} 49. Kc2 {[%clk 0:00:38]}  h4 {[%clk 0:00:11]} 50. gxh4 {[%clk 0:00:37]}  Rh1 {[%clk 0:00:11]} 51. Nc3 {[%clk 0:00:34]}  Rxh4 {[%clk 0:00:09]} 52. Nxa4 {[%clk 0:00:34]}  b5 {[%clk 0:00:08]} 53. Nb6 {[%clk 0:00:28]}  bxc4 {[%clk 0:00:08]} 54. Bxc4 {[%clk 0:00:27]}  Rg4 {[%clk 0:00:07]} 55. Nd5 {[%clk 0:00:26]}  Rxg5 {[%clk 0:00:07]} 56. Kd3 {[%clk 0:00:25]}  Rg3+ {[%clk 0:00:08]} 57. Ne3 {[%clk 0:00:24]}  Kh6 {[%clk 0:00:07]} 58. Ke4 {[%clk 0:00:23]}  Rg1 {[%clk 0:00:06]} 59. Be6 {[%clk 0:00:23]}  Ra1 {[%clk 0:00:06]} 60. Kf3 {[%clk 0:00:22]}  Ra3 {[%clk 0:00:06]} 61. Bg4 {[%clk 0:00:22]}  Kg5 {[%clk 0:00:06]} 62. Be6 {[%clk 0:00:22]}  Kh4 {[%clk 0:00:05]} 63. Bg4 {[%clk 0:00:22]}  Rxe3+ {[%clk 0:00:05]} 64. Kxe3 {[%clk 0:00:21]}  Kxg4 {[%clk 0:00:06]} 65. Kf2 {[%clk 0:00:22]}  Kh3 {[%clk 0:00:06]} 66. Kg1 {[%clk 0:00:22]}  Kg3 {[%clk 0:00:07]} 67. Kh1 {[%clk 0:00:22]}  g5 {[%clk 0:00:08]} 68. Kg1 {[%clk 0:00:22]}  g4 {[%clk 0:00:07]} 69. Kh1 {[%clk 0:00:22]}  Kf2 {[%clk 0:00:08]} 70. Kh2 {[%clk 0:00:22]}  g3+ {[%clk 0:00:09]} 71. Kh1 {[%clk 0:00:22]}  g2+ {[%clk 0:00:09]} 72. Kh2 {[%clk 0:00:22]}  g1=Q+ {[%clk 0:00:10]} 73. Kh3 {[%clk 0:00:22]}  Qg6 {[%clk 0:00:09]} 74. Kh2 {[%clk 0:00:22]}  Qg2# {[%clk 0:00:09]} 0-1

[Event "January 9 Late 2024"]
[Site "https://www.chess.com"]
[Date "2024.01.09"]
[Round "7"]
[White "Kappeler, Kaspar"]
[Black "Dias, Joao Batista"]
[Result "0-1"]
[Board "165"]
[TimeControl "180+1"]
[WhiteFideId "1309072"]
[BlackFideId "2108240"]
[WhiteElo "2262"]
[BlackElo "2057"]
[WhiteTeam "SUI"]
[BlackTeam "BRA"]
[WhiteClock "0:00:00"]
[BlackClock "0:00:20"]

1. d4 {[%clk 0:03:00]}  d5 {[%clk 0:02:58]} 2. c4 {[%clk 0:03:00]}  c6 {[%clk 0:02:59]} 3. Nf3 {[%clk 0:03:00]}  Nf6 {[%clk 0:03:00]} 4. e3 {[%clk 0:03:00]}  g6 {[%clk 0:03:00]} 5. Nc3 {[%clk 0:02:59]}  Bg7 {[%clk 0:03:01]} 6. Bd3 {[%clk 0:02:55]}  O-O {[%clk 0:03:02]} 7. O-O {[%clk 0:02:55]}  Re8 {[%clk 0:03:01]} 8. b3 {[%clk 0:02:50]}  Nbd7 {[%clk 0:03:01]} 9. Bb2 {[%clk 0:02:46]}  e5 {[%clk 0:03:01]} 10. dxe5 {[%clk 0:02:44]}  Nxe5 {[%clk 0:03:02]} 11. Nxe5 {[%clk 0:02:44]}  Rxe5 {[%clk 0:03:02]} 12. cxd5 {[%clk 0:02:30]}  Nxd5 {[%clk 0:03:00]} 13. Bxg6 {[%clk 0:01:59]}  hxg6 {[%clk 0:02:57]} 14. e4 {[%clk 0:02:00]}  Be6 {[%clk 0:02:48]} 15. exd5 {[%clk 0:01:40]}  Bxd5 {[%clk 0:02:47]} 16. Ne2 {[%clk 0:01:27]}  Rg5 {[%clk 0:02:41]} 17. Ng3 {[%clk 0:01:10]}  Bxb2 {[%clk 0:02:38]} 18. Rb1 {[%clk 0:01:08]}  Bg7 {[%clk 0:02:36]} 19. f4 {[%clk 0:01:08]}  Rxg3 {[%clk 0:02:21]} 20. hxg3 {[%clk 0:01:07]}  Qb6+ {[%clk 0:02:11]} 21. Kh2 {[%clk 0:01:02]}  f6 {[%clk 0:02:08]} 22. Qe2 {[%clk 0:00:55]}  Kf7 {[%clk 0:02:07]} 23. g4 {[%clk 0:00:52]}  Rh8+ {[%clk 0:02:05]} 24. Kg3 {[%clk 0:00:52]}  Re8 {[%clk 0:02:05]} 25. Qd2 {[%clk 0:00:46]}  Re3+ {[%clk 0:02:03]} 26. Kh2 {[%clk 0:00:46]}  f5 {[%clk 0:01:37]} 27. gxf5 {[%clk 0:00:42]}  gxf5 {[%clk 0:01:37]} 28. a4 {[%clk 0:00:42]}  Rxb3 {[%clk 0:01:11]} 29. a5 {[%clk 0:00:31]}  Qb5 {[%clk 0:01:00]} 30. Rbe1 {[%clk 0:00:19]}  Qd3 {[%clk 0:00:49]} 31. Qf2 {[%clk 0:00:11]}  Bf6 {[%clk 0:00:41]} 32. Re2 {[%clk 0:00:08]}  Be4 {[%clk 0:00:31]} 33. Rd2 {[%clk 0:00:09]}  Qe3 {[%clk 0:00:30]} 34. Qxe3 {[%clk 0:00:08]}  Rxe3 {[%clk 0:00:29]} 35. Rd7+ {[%clk 0:00:09]}  Ke6 {[%clk 0:00:29]} 36. Rxb7 {[%clk 0:00:09]}  Bd4 {[%clk 0:00:27]} 37. Rd1 {[%clk 0:00:09]}  Kd5 {[%clk 0:00:26]} 38. Rd7+ {[%clk 0:00:08]}  Kc5 {[%clk 0:00:24]} 39. R7xd4 {[%clk 0:00:08]}  Kb5 {[%clk 0:00:23]} 40. Rd7 {[%clk 0:00:07]}  Kxa5 {[%clk 0:00:23]} 41. Rxa7+ {[%clk 0:00:07]}  Kb5 {[%clk 0:00:23]} 42. Rc7 {[%clk 0:00:07]}  Kc5 {[%clk 0:00:22]} 43. Rc1+ {[%clk 0:00:07]}  Kd6 {[%clk 0:00:22]} 44. Rc8 {[%clk 0:00:06]}  Re2 {[%clk 0:00:22]} 45. Rg8 {[%clk 0:00:06]}  Rf2 {[%clk 0:00:22]} 46. Rg6+ {[%clk 0:00:06]}  Kd5 {[%clk 0:00:21]} 47. Kh3 {[%clk 0:00:06]}  Rxf4 {[%clk 0:00:21]} 48. g3 {[%clk 0:00:06]}  Rf3 {[%clk 0:00:20]} 49. Rg5 {[%clk 0:00:06]}  Kd4 {[%clk 0:00:20]} 50. Kh4 {[%clk 0:00:06]}  Ke3 {[%clk 0:00:19]} 51. Rc3+ {[%clk 0:00:04]}  Kf2 {[%clk 0:00:19]} 52. Rxf3+ {[%clk 0:00:05]}  Kxf3 {[%clk 0:00:19]} 53. Rg6 {[%clk 0:00:04]}  Ke3 {[%clk 0:00:19]} 54. Rf6 {[%clk 0:00:04]}  Kd4 {[%clk 0:00:19]} 55. Kg5 {[%clk 0:00:05]}  c5 {[%clk 0:00:19]} 56. Kf4 {[%clk 0:00:05]}  c4 {[%clk 0:00:19]} 57. Rf8 {[%clk 0:00:04]}  c3 {[%clk 0:00:20]} 58. Rd8+ {[%clk 0:00:05]}  Bd5 {[%clk 0:00:20]} 59. Rc8 {[%clk 0:00:00]}  Bc4 {[%clk 0:00:20]} 0-1

[Event "January 9 Late 2024"]
[Site "https://www.chess.com"]
[Date "2024.01.09"]
[Round "7"]
[White "Sami, Sama"]
[Black "Thake, Conrad"]
[Result "1-0"]
[Board "166"]
[TimeControl "180+1"]
[WhiteFideId "4802926"]
[BlackFideId "5602947"]
[WhiteElo "2257"]
[BlackElo "1853"]
[WhiteTeam "IRQ"]
[BlackTeam "MLT"]
[WhiteClock "0:01:03"]
[BlackClock "0:00:09"]

1. e4 {[%clk 0:03:00]}  c5 {[%clk 0:02:59]} 2. Nf3 {[%clk 0:03:00]}  Nc6 {[%clk 0:02:57]} 3. d4 {[%clk 0:02:56]}  cxd4 {[%clk 0:02:57]} 4. Nxd4 {[%clk 0:02:56]}  Nf6 {[%clk 0:02:56]} 5. Nc3 {[%clk 0:02:56]}  e5 {[%clk 0:02:52]} 6. Ndb5 {[%clk 0:02:55]}  d6 {[%clk 0:02:51]} 7. Nd5 {[%clk 0:02:46]}  Nxd5 {[%clk 0:02:50]} 8. exd5 {[%clk 0:02:46]}  Nb8 {[%clk 0:02:50]} 9. c4 {[%clk 0:02:37]}  a6 {[%clk 0:02:50]} 10. Qa4 {[%clk 0:02:36]}  Bd7 {[%clk 0:02:41]} 11. c5 {[%clk 0:02:07]}  dxc5 {[%clk 0:02:27]} 12. d6 {[%clk 0:02:07]}  axb5 {[%clk 0:02:20]} 13. Qxa8 {[%clk 0:02:06]}  Bxd6 {[%clk 0:02:17]} 14. Qxb7 {[%clk 0:02:05]}  Bc6 {[%clk 0:02:08]} 15. Bxb5 {[%clk 0:02:04]}  Bxb5 {[%clk 0:02:06]} 16. Qxb5+ {[%clk 0:02:05]}  Nd7 {[%clk 0:01:56]} 17. Be3 {[%clk 0:01:56]}  O-O {[%clk 0:01:55]} 18. Rd1 {[%clk 0:01:56]}  Qe7 {[%clk 0:01:51]} 19. O-O {[%clk 0:01:49]}  Rb8 {[%clk 0:01:49]} 20. Qd3 {[%clk 0:01:46]}  Rb6 {[%clk 0:01:30]} 21. b4 {[%clk 0:01:44]}  e4 {[%clk 0:01:27]} 22. Qd5 {[%clk 0:01:39]}  Nf6 {[%clk 0:01:20]} 23. Qa8+ {[%clk 0:01:36]}  Rb8 {[%clk 0:01:20]} 24. Qc6 {[%clk 0:01:29]}  Rd8 {[%clk 0:00:59]} 25. bxc5 {[%clk 0:01:26]}  Bc7 {[%clk 0:00:52]} 26. Rxd8+ {[%clk 0:01:25]}  Bxd8 {[%clk 0:00:53]} 27. Qc8 {[%clk 0:01:21]}  Qc7 {[%clk 0:00:34]} 28. Qxc7 {[%clk 0:01:18]}  Bxc7 {[%clk 0:00:34]} 29. Bg5 {[%clk 0:01:15]}  Nd7 {[%clk 0:00:27]} 30. c6 {[%clk 0:01:12]}  Ne5 {[%clk 0:00:24]} 31. Rd1 {[%clk 0:01:04]}  f6 {[%clk 0:00:22]} 32. Bf4 {[%clk 0:01:03]}  g5 {[%clk 0:00:17]} 33. Bxe5 {[%clk 0:01:03]}  Bxe5 {[%clk 0:00:17]} 34. Rd8+ {[%clk 0:01:02]}  Kf7 {[%clk 0:00:15]} 35. c7 {[%clk 0:01:03]}  Bxc7 {[%clk 0:00:13]} 36. Rd7+ {[%clk 0:01:03]}  Ke6 {[%clk 0:00:13]} 37. Rxc7 {[%clk 0:01:03]}  f5 {[%clk 0:00:09]} 38. Rxh7 {[%clk 0:01:03]} 1-0

[Event "January 9 Late 2024"]
[Site "https://www.chess.com"]
[Date "2024.01.09"]
[Round "7"]
[White "Awoki, Daniel Teidi"]
[Black "Panico, Nick"]
[Result "0-1"]
[Board "167"]
[TimeControl "180+1"]
[WhiteFideId "2100827"]
[BlackFideId "2026724"]
[WhiteElo "2446"]
[BlackElo "2048"]
[WhiteTeam "BRA"]
[BlackTeam "USA"]
[WhiteClock "0:00:01"]
[BlackClock "0:00:17"]

1. e4 {[%clk 0:02:49]}  e6 {[%clk 0:02:59]} 2. d4 {[%clk 0:02:49]}  d5 {[%clk 0:03:00]} 3. Nd2 {[%clk 0:02:50]}  Nf6 {[%clk 0:02:59]} 4. e5 {[%clk 0:02:51]}  Nfd7 {[%clk 0:03:00]} 5. Bd3 {[%clk 0:02:51]}  c5 {[%clk 0:03:00]} 6. c3 {[%clk 0:02:52]}  Nc6 {[%clk 0:03:01]} 7. Ne2 {[%clk 0:02:53]}  cxd4 {[%clk 0:03:01]} 8. cxd4 {[%clk 0:02:54]}  f6 {[%clk 0:03:02]} 9. exf6 {[%clk 0:02:55]}  Nxf6 {[%clk 0:03:02]} 10. Nf3 {[%clk 0:02:56]}  Bd6 {[%clk 0:03:03]} 11. O-O {[%clk 0:02:57]}  Qc7 {[%clk 0:03:03]} 12. h3 {[%clk 0:02:57]}  O-O {[%clk 0:03:02]} 13. Nc3 {[%clk 0:02:57]}  a6 {[%clk 0:03:02]} 14. Be3 {[%clk 0:02:58]}  Nh5 {[%clk 0:02:38]} 15. Rc1 {[%clk 0:02:56]}  Nf4 {[%clk 0:02:28]} 16. Bb1 {[%clk 0:02:49]}  g6 {[%clk 0:02:22]} 17. a3 {[%clk 0:02:10]}  Qg7 {[%clk 0:02:21]} 18. b4 {[%clk 0:02:05]}  Bd7 {[%clk 0:02:21]} 19. Na4 {[%clk 0:02:00]}  e5 {[%clk 0:01:33]} 20. Bxf4 {[%clk 0:01:40]}  exf4 {[%clk 0:01:10]} 21. Nb6 {[%clk 0:01:40]}  Rae8 {[%clk 0:01:04]} 22. Ba2 {[%clk 0:01:37]}  Kh8 {[%clk 0:00:53]} 23. Bxd5 {[%clk 0:01:34]}  g5 {[%clk 0:00:51]} 24. Nxd7 {[%clk 0:01:33]}  Qxd7 {[%clk 0:00:50]} 25. Bxc6 {[%clk 0:01:34]}  bxc6 {[%clk 0:00:49]} 26. Qc2 {[%clk 0:01:24]}  g4 {[%clk 0:00:47]} 27. Ng5 {[%clk 0:01:21]}  gxh3 {[%clk 0:00:42]} 28. Qxc6 {[%clk 0:01:21]}  Qg7 {[%clk 0:00:36]} 29. Nxh3 {[%clk 0:01:05]}  Rg8 {[%clk 0:00:34]} 30. Rce1 {[%clk 0:00:56]}  Ref8 {[%clk 0:00:30]} 31. Re5 {[%clk 0:00:32]}  Bxe5 {[%clk 0:00:25]} 32. dxe5 {[%clk 0:00:33]}  f3 {[%clk 0:00:25]} 33. g3 {[%clk 0:00:32]}  Qg4 {[%clk 0:00:25]} 34. Kh2 {[%clk 0:00:22]}  Rg6 {[%clk 0:00:25]} 35. Qc5 {[%clk 0:00:15]}  Rfg8 {[%clk 0:00:25]} 36. e6 {[%clk 0:00:07]}  Qxh3+ {[%clk 0:00:18]} 37. Kxh3 {[%clk 0:00:01]}  Rh6+ {[%clk 0:00:17]} 38. Qh5 {[%clk 0:00:01]} 0-1

[Event "January 9 Late 2024"]
[Site "https://www.chess.com"]
[Date "2024.01.09"]
[Round "7"]
[White "Balla, Tamas-Kristof"]
[Black "Quirke, Jeffrey"]
[Result "1-0"]
[Board "169"]
[TimeControl "180+1"]
[WhiteFideId "1208497"]
[BlackFideId "2013029"]
[WhiteElo "2416"]
[BlackElo "2137"]
[WhiteTeam "ROU"]
[BlackTeam "USA"]
[WhiteClock "0:00:29"]
[BlackClock "0:00:00"]

1. e4 {[%clk 0:02:57]}  e6 {[%clk 0:02:59]} 2. d4 {[%clk 0:02:56]}  d5 {[%clk 0:03:00]} 3. Nd2 {[%clk 0:02:56]}  c5 {[%clk 0:02:59]} 4. exd5 {[%clk 0:02:53]}  Qxd5 {[%clk 0:03:00]} 5. Ngf3 {[%clk 0:02:52]}  cxd4 {[%clk 0:02:59]} 6. Bc4 {[%clk 0:02:52]}  Qd7 {[%clk 0:03:00]} 7. O-O {[%clk 0:02:52]}  Nc6 {[%clk 0:03:00]} 8. Nb3 {[%clk 0:02:52]}  a6 {[%clk 0:03:01]} 9. Nbxd4 {[%clk 0:02:52]}  Nxd4 {[%clk 0:03:02]} 10. Nxd4 {[%clk 0:02:52]}  Qc7 {[%clk 0:02:59]} 11. Bb3 {[%clk 0:02:50]}  Bd6 {[%clk 0:02:58]} 12. Nf5 {[%clk 0:02:45]}  Bxh2+ {[%clk 0:02:54]} 13. Kh1 {[%clk 0:02:45]}  Be5 {[%clk 0:02:54]} 14. Ne3 {[%clk 0:02:33]}  Ne7 {[%clk 0:02:41]} 15. Re1 {[%clk 0:02:31]}  O-O {[%clk 0:02:40]} 16. Ng4 {[%clk 0:02:23]}  Bd6 {[%clk 0:02:35]} 17. Qd4 {[%clk 0:02:20]}  Ng6 {[%clk 0:02:24]} 18. Bg5 {[%clk 0:02:04]}  e5 {[%clk 0:02:22]} 19. Qe4 {[%clk 0:01:57]}  Kh8 {[%clk 0:02:01]} 20. Rad1 {[%clk 0:01:53]}  Bxg4 {[%clk 0:01:33]} 21. Qxg4 {[%clk 0:01:54]}  f5 {[%clk 0:01:31]} 22. Qh5 {[%clk 0:01:47]}  Be7 {[%clk 0:00:53]} 23. Rd3 {[%clk 0:01:25]}  Bxg5 {[%clk 0:00:52]} 24. Qxg5 {[%clk 0:01:25]}  Rf6 {[%clk 0:00:51]} 25. Rh3 {[%clk 0:01:20]}  Nf4 {[%clk 0:00:37]} 26. Rh4 {[%clk 0:01:09]}  h6 {[%clk 0:00:25]} 27. Qg3 {[%clk 0:00:55]}  Raf8 {[%clk 0:00:22]} 28. Rd1 {[%clk 0:00:46]}  Qc6 {[%clk 0:00:20]} 29. Qh2 {[%clk 0:00:45]}  Rg6 {[%clk 0:00:16]} 30. f3 {[%clk 0:00:43]}  Rxg2 {[%clk 0:00:10]} 31. Qxg2 {[%clk 0:00:41]}  Nxg2 {[%clk 0:00:10]} 32. Kxg2 {[%clk 0:00:42]}  e4 {[%clk 0:00:08]} 33. Rd5 {[%clk 0:00:33]}  Qg6+ {[%clk 0:00:08]} 34. Kf2 {[%clk 0:00:32]}  exf3 {[%clk 0:00:07]} 35. Kxf3 {[%clk 0:00:32]}  Re8 {[%clk 0:00:06]} 36. Rf4 {[%clk 0:00:29]}  Qg1 {[%clk 0:00:06]} 37. Rd3 {[%clk 0:00:26]}  Qf1+ {[%clk 0:00:05]} 38. Kg3 {[%clk 0:00:26]}  Qg1+ {[%clk 0:00:04]} 39. Kf3 {[%clk 0:00:26]}  Rf8 {[%clk 0:00:01]} 40. Bf7 {[%clk 0:00:24]}  Qh1+ {[%clk 0:00:01]} 41. Kg3 {[%clk 0:00:24]}  Rxf7 {[%clk 0:00:02]} 42. Rd8+ {[%clk 0:00:24]}  Kh7 {[%clk 0:00:02]} 43. Rd3 {[%clk 0:00:24]}  Qg1+ {[%clk 0:00:03]} 44. Kf3 {[%clk 0:00:25]}  Qf1+ {[%clk 0:00:03]} 45. Ke3 {[%clk 0:00:25]}  Qe1+ {[%clk 0:00:03]} 46. Kd4 {[%clk 0:00:26]}  Qg1+ {[%clk 0:00:02]} 47. Kc3 {[%clk 0:00:26]}  g5 {[%clk 0:00:02]} 48. Rc4 {[%clk 0:00:26]}  f4 {[%clk 0:00:02]} 49. Rd6 {[%clk 0:00:27]}  f3 {[%clk 0:00:02]} 50. Re4 {[%clk 0:00:27]}  Qh1 {[%clk 0:00:01]} 51. Ree6 {[%clk 0:00:27]}  f2 {[%clk 0:00:01]} 52. Rf6 {[%clk 0:00:28]}  Rxf6 {[%clk 0:00:00]} 53. Rxf6 {[%clk 0:00:29]} 1-0